[Event "CRO-ch Youth U17 2020"]
[Site "Vinkovci"]
[Date "2020.08.01"]
[Round "5.2"]
[White "Ljubicic, Mario"]
[Black "Karlusic, Luka"]
[Result "1-0"]
[ECO "B33"]
[WhiteElo "1966"]
[BlackElo "2169"]
[Annotator "ChessBase"]
[PlyCount "102"]
[EventDate "2020.07.28"]
[EventType "swiss"]
[EventCountry "CRO"]
[TimeControl "5400+30"]

1. e4 {[%emt 0:00:30]} c5 {[%emt 0:00:30]} 2. Nf3 {[%emt 0:00:00]} Nc6 {[%emt 0:00:00]} 3. d4 {[%emt 0:00:00]} cxd4 {[%emt 0:00:00]} 4. Nxd4 {[%emt 0:00:30]} Nf6 {[%emt 0:00:00]} 5. Nc3 {[%emt 0:00:30]} e5 {[%emt 0:00:00]} 6. Ndb5 {[%emt 0:03:30]} d6 {[%emt 0:00:30]} 7. Be3 {[%emt 0:10:30]} a6 {[%emt 0:04:30]} 8. Na3 {[%emt 0:00:30]} b5 {[%emt 0:07:30]} 9. Nd5 {[%emt 0:01:30]} Rb8 {[%emt 0:03:30]} 10. Bd3 {[%emt 0:16:30]} Be6 {[%emt 0:12:30]} 11. Nxf6+ {[%emt 0:04:30]} gxf6 {[%emt 0:10:30]} 12. O-O {[%emt 0:16:30]} h5 {[%emt 0:12:30]} 13. c4 {[%emt 0:03:30]} b4 {[%emt 0:01:30]} 14. Nc2 {[%emt 0:01:30]} Qd7 {[%emt 0:04:30]} 15. Kh1 {[%emt 0:02:30]} Bh6 {[%emt 0:06:30]} 16. Bxh6 {[%emt 0:05:30]} Rxh6 {[%emt 0:00:30]} 17. Qd2 {[%emt 0:00:30]} Rg6 {[%emt 0:13:30]} 18. f3 {[%emt 0:06:30]} Ke7 {[%emt 0:03:35]} 19. b3 {[%emt 0:05:10]} a5 {[%emt 0:00:51]} 20. Rad1 {[%emt 0:03:19]} Rd8 {[%emt 0:00:52]} 21. f4 {[%emt 0:02:32]} exf4 {[%emt 0:00:39]} 22. Qxf4 {[%emt 0:00:38]} Ne5 {[%emt 0:00:57]} 23. Be2 {[%emt 0:00:28]} Bg4 {[%emt 0:03:31]} 24. Nd4 {[%emt 0:02:32]} Bxe2 {[%emt 0:01:05]} 25. Nxe2 {[%emt 0:00:01]} Qg4 {[%emt 0:01:54]} 26. Qxg4 {[%emt 0:00:44]} Rxg4 {[%emt 0:00:21]} 27. Nf4 {[%emt 0:00:32]} Nd7 {[%emt 0:03:36]} 28. Rd5 {[%emt 0:02:42]} Rg5 {[%emt 0:00:16]} 29. Nxh5 {[%emt 0:02:49]} Re5 {[%emt 0:03:06]} 30. Ng3 {[%emt 0:01:29]} Nb6 {[%emt 0:02:16]} 31. Nf5+ {[%emt 0:02:05]} Ke6 {[%emt 0:00:07]} 32. Nd4+ {[%emt 0:01:19]} Kd7 {[%emt 0:00:02]} 33. Rxe5 {[%emt 0:00:51]} dxe5 {[%emt 0:00:44]} 34. Nb5 {[%emt 0:00:38]} Ke7 {[%emt 0:00:24]} 35. c5 {[%emt 0:02:08]} Nc8 {[%emt 0:00:53]} 36. Nc7 {[%emt 0:01:53]} Rd2 {[%emt 0:00:23]} 37. Nd5+ {[%emt 0:00:05]} Kd7 {[%emt 0:00:24]} 38. h4 {[%emt 0:00:14]} Ne7 {[%emt 0:02:42]} 39. Rxf6 {[%emt 0:01:10]} Nxd5 {[%emt 0:00:16]} 40. exd5 {[%emt 0:00:38]} Rxd5 {[%emt 0:00:23]} 41. Rd6+ {[%emt 0:00:51]} Rxd6 {[%emt 0:00:05]} 42. cxd6 {[%emt 0:00:03]} Kxd6 {[%emt 0:00:06]} 43. g4 {[%emt 0:00:23]} Ke6 {[%emt 0:00:38]} 44. Kg2 {[%emt 0:00:15]} f5 {[%emt 0:00:50]} 45. gxf5+ {[%emt 0:00:44]} Kxf5 {[%emt 0:00:01]} 46. Kf3 {[%emt 0:00:05]} Kf6 {[%emt 0:02:00]} 47. Ke4 {[%emt 0:00:05]} Ke6 {[%emt 0:00:01]} 48. h5 {[%emt 0:00:06]} Kf6 {[%emt 0:00:06]} 49. h6 {[%emt 0:00:12]} Kg6 {[%emt 0:00:06]} 50. Kxe5 {[%emt 0:00:03]} Kxh6 {[%emt 0:00:01]} 51. Kd5 {[%emt 0:00:04]} a4 {[%emt 0:00:07]} 1-0

[Event "CRO-ch Youth U17 2020"]
[Site "Vinkovci"]
[Date "2020.08.01"]
[Round "5.4"]
[White "Mrvac, Petar"]
[Black "Mahecic, Lovre"]
[Result "0-1"]
[ECO "C45"]
[WhiteElo "1848"]
[BlackElo "1949"]
[Annotator "ChessBase"]
[PlyCount "86"]
[EventDate "2020.07.28"]
[EventType "swiss"]
[EventCountry "CRO"]
[TimeControl "5400+30"]

1. e4 {[%emt 0:00:30]} e5 {[%emt 0:00:30]} 2. Nf3 {[%emt 0:00:00]} Nc6 {[%emt 0:00:00]} 3. d4 {[%emt 0:00:00]} exd4 {[%emt 0:00:00]} 4. Nxd4 {[%emt 0:00:00]} Bc5 {[%emt 0:00:00]} 5. Be3 {[%emt 0:00:00]} Qf6 {[%emt 0:00:00]} 6. c3 {[%emt 0:00:30]} d6 {[%emt 0:00:30]} 7. Bc4 {[%emt 0:01:30]} Nge7 {[%emt 0:02:30]} 8. O-O {[%emt 0:00:30]} a6 {[%emt 0:00:30]} 9. Nxc6 {[%emt 0:07:30]} Nxc6 {[%emt 0:00:00]} 10. Bxc5 {[%emt 0:00:30]} dxc5 {[%emt 0:00:00]} 11. Nd2 {[%emt 0:04:30]} O-O {[%emt 0:00:30]} 12. Qe2 {[%emt 0:05:30]} Be6 {[%emt 0:07:30]} 13. f4 {[%emt 0:07:30]} Rad8 {[%emt 0:01:30]} 14. Rad1 {[%emt 0:02:30]} Rfe8 {[%emt 0:02:30]} 15. g3 {[%emt 0:07:30]} b5 {[%emt 0:19:30]} 16. Bb3 {[%emt 0:27:30]} Na5 {[%emt 0:02:30]} 17. e5 {[%emt 0:02:30]} Qg6 {[%emt 0:01:30]} 18. Bxe6 {[%emt 0:03:30]} Qxe6 {[%emt 0:00:30]} 19. Ne4 {[%emt 0:01:30]} Nb7 {[%emt 0:04:30]} 20. Rxd8 {[%emt 0:09:17]} Rxd8 {[%emt 0:00:00]} 21. b3 {[%emt 0:03:59]} Qd5 {[%emt 0:03:00]} 22. Kf2 {[%emt 0:05:46]} h6 {[%emt 0:01:30]} 23. Rc1 {[%emt 0:01:48]} c4 {[%emt 0:07:30]} 24. b4 {[%emt 0:00:49]} Qe6 {[%emt 0:00:30]} 25. Rc2 {[%emt 0:01:17]} Rd3 {[%emt 0:10:30]} 26. Rd2 {[%emt 0:01:03]} Qd5 {[%emt 0:00:30]} 27. Rxd3 {[%emt 0:02:38]} cxd3 {[%emt 0:00:30]} 28. Qe3 {[%emt 0:00:08]} Qxa2+ {[%emt 0:00:00]} 29. Qd2 {[%emt 0:00:31]} Qxd2+ {[%emt 0:06:00]} 30. Nxd2 {[%emt 0:00:08]} c5 {[%emt 0:00:30]} 31. Ke3 {[%emt 0:01:53]} c4 {[%emt 0:00:00]} 32. Ne4 {[%emt 0:00:09]} Kf8 {[%emt 0:00:00]} 33. f5 {[%emt 0:00:34]} Ke7 {[%emt 0:00:30]} 34. g4 {[%emt 0:00:11]} a5 {[%emt 0:00:30]} 35. bxa5 {[%emt 0:00:36]} Nxa5 {[%emt 0:00:30]} 36. Nd6 {[%emt 0:00:43]} Nc6 {[%emt 0:00:30]} 37. Nxb5 {[%emt 0:00:26]} Nxe5 {[%emt 0:00:00]} 38. h3 {[%emt 0:00:35]} Kf6 {[%emt 0:00:00]} 39. Nd6 {[%emt 0:00:50]} Kg5 {[%emt 0:01:30]} 40. Kd4 {[%emt 0:00:42]} f6 {[%emt 0:00:30]} 41. Ne4+ {[%emt 0:00:42]} Kh4 {[%emt 0:00:00]} 42. Nf2 {[%emt 0:00:09]} Kg3 {[%emt 0:01:00]} 43. Ke3 {[%emt 0:00:14]} Nf7 {[%emt 0:00:30]} 0-1

[Event "CRO-ch Youth U17 2020"]
[Site "Vinkovci"]
[Date "2020.08.01"]
[Round "5.5"]
[White "Mandaric, Fran"]
[Black "Vucenovic, Damian"]
[Result "0-1"]
[ECO "C77"]
[WhiteElo "1671"]
[BlackElo "1959"]
[Annotator "ChessBase"]
[PlyCount "116"]
[EventDate "2020.07.28"]
[EventType "swiss"]
[EventCountry "CRO"]
[TimeControl "5400+30"]

1. e4 {[%emt 0:00:30]} e5 {[%emt 0:00:30]} 2. Nf3 {[%emt 0:00:00]} Nc6 {[%emt 0:00:30]} 3. Bb5 {[%emt 0:00:00]} a6 {[%emt 0:00:30]} 4. Ba4 {[%emt 0:00:00]} Nf6 {[%emt 0:01:30]} 5. d3 {[%emt 0:00:00]} d6 {[%emt 0:01:30]} 6. c3 {[%emt 0:02:30]} Be7 {[%emt 0:01:30]} 7. O-O {[%emt 0:00:30]} O-O {[%emt 0:03:30]} 8. Nbd2 {[%emt 0:01:30]} b5 {[%emt 0:05:30]} 9. Bc2 {[%emt 0:03:30]} Bg4 {[%emt 0:07:30]} 10. h3 {[%emt 0:01:30]} Bh5 {[%emt 0:00:30]} 11. Re1 {[%emt 0:00:30]} Nd7 {[%emt 0:03:30]} 12. Nf1 {[%emt 0:00:30]} Nc5 {[%emt 0:05:30]} 13. Ng3 {[%emt 0:04:30]} Bxf3 {[%emt 0:00:30]} 14. Qxf3 {[%emt 0:00:30]} Ne6 {[%emt 0:02:30]} 15. Qg4 {[%emt 0:21:30]} Bg5 {[%emt 0:07:30]} 16. Bb3 {[%emt 0:06:30]} Bxc1 {[%emt 0:02:30]} 17. Raxc1 {[%emt 0:03:30]} Nf4 {[%emt 0:03:30]} 18. Nf5 {[%emt 0:14:30]} Qf6 {[%emt 0:02:30]} 19. Re3 {[%emt 0:05:30]} Ne7 {[%emt 0:02:30]} 20. Nxe7+ {[%emt 0:12:30]} Qxe7 {[%emt 0:00:30]} 21. Rg3 {[%emt 0:00:30]} Qf6 {[%emt 0:01:30]} 22. Re1 {[%emt 0:02:59]} Rad8 {[%emt 0:07:30]} 23. h4 {[%emt 0:02:48]} c6 {[%emt 0:08:30]} 24. d4 {[%emt 0:02:26]} a5 {[%emt 0:04:30]} 25. Qg5 {[%emt 0:06:06]} Qxg5 {[%emt 0:00:30]} 26. hxg5 {[%emt 0:00:25]} c5 {[%emt 0:01:30]} 27. d5 {[%emt 0:01:27]} g6 {[%emt 0:03:30]} 28. Rf3 {[%emt 0:00:51]} f5 {[%emt 0:00:30]} 29. gxf6 {[%emt 0:02:15]} Rxf6 {[%emt 0:00:30]} 30. Ree3 {[%emt 0:00:56]} Rdf8 {[%emt 0:01:30]} 31. g3 {[%emt 0:01:23]} Nh3+ {[%emt 0:01:53]} 32. Kg2 {[%emt 0:00:10]} Ng5 {[%emt 0:00:41]} 33. Rxf6 {[%emt 0:01:57]} Rxf6 {[%emt 0:00:06]} 34. a4 {[%emt 0:00:47]} c4 {[%emt 0:04:06]} 35. Ba2 {[%emt 0:00:54]} bxa4 {[%emt 0:00:45]} 36. Bxc4 {[%emt 0:00:11]} Rf8 {[%emt 0:00:19]} 37. Bb5 {[%emt 0:00:21]} Rb8 {[%emt 0:00:16]} 38. c4 {[%emt 0:00:06]} Nf7 {[%emt 0:01:35]} 39. f4 {[%emt 0:00:19]} g5 {[%emt 0:00:34]} 40. f5 {[%emt 0:01:28]} g4 {[%emt 0:00:28]} 41. Kf2 {[%emt 0:00:47]} Ng5 {[%emt 0:00:35]} 42. Ke2 {[%emt 0:01:01]} Nf3 {[%emt 0:00:53]} 43. Rd3 {[%emt 0:00:40]} Kf7 {[%emt 0:02:02]} 44. Kf2 {[%emt 0:00:38]} Kf6 {[%emt 0:00:32]} 45. Ke2 {[%emt 0:00:31]} Nd4+ {[%emt 0:00:42]} 46. Kd2 {[%emt 0:00:31]} Nxb5 {[%emt 0:01:22]} 47. cxb5 {[%emt 0:00:07]} Rxb5 {[%emt 0:00:04]} 48. Kc2 {[%emt 0:00:18]} h5 {[%emt 0:03:44]} 49. Rc3 {[%emt 0:00:34]} Rb4 {[%emt 0:03:31]} 50. Re3 {[%emt 0:00:47]} Rb3 {[%emt 0:00:39]} 51. Rxb3 {[%emt 0:00:29]} axb3+ {[%emt 0:00:05]} 52. Kd3 {[%emt 0:00:34]} a4 {[%emt 0:00:17]} 53. Kd2 {[%emt 0:00:12]} h4 {[%emt 0:00:21]} 54. gxh4 {[%emt 0:00:09]} g3 {[%emt 0:00:04]} 55. Ke2 {[%emt 0:01:15]} a3 {[%emt 0:00:08]} 56. h5 {[%emt 0:00:17]} axb2 {[%emt 0:00:27]} 57. h6 {[%emt 0:00:07]} b1=Q {[%emt 0:00:11]} 58. h7 {[%emt 0:00:10]} Qxe4+ {[%emt 0:00:06]} 0-1

[Event "CRO-ch Youth U17 2020"]
[Site "Vinkovci"]
[Date "2020.08.01"]
[Round "5.6"]
[White "Juric, Ester"]
[Black "Dejanovic, Tereza"]
[Result "0-1"]
[ECO "D56"]
[WhiteElo "1663"]
[BlackElo "1788"]
[Annotator "NA RC"]
[PlyCount "82"]
[EventDate "2020.07.28"]
[EventType "swiss"]
[EventCountry "CRO"]
[TimeControl "5400+30"]

1. d4 {[%emt 0:00:30]} d5 {[%emt 0:00:30]} 2. c4 {[%emt 0:00:00]} e6 {[%emt 0:00:00]} 3. Nc3 {[%emt 0:00:00]} Be7 {[%emt 0:00:00]} 4. Nf3 {[%emt 0:00:00]} Nf6 {[%emt 0:00:00]} 5. Bg5 {[%emt 0:00:00]} O-O {[%emt 0:00:00]} 6. e3 {[%emt 0:00:00]} h6 {[%emt 0:00:00]} 7. Bh4 {[%emt 0:00:00]} Ne4 {[%emt 0:00:00]} 8. Bxe7 {[%emt 0:00:30]} Qxe7 {[%emt 0:00:30]} 9. Rc1 {[%emt 0:00:30]} c6 {[%emt 0:00:00]} 10. Bd3 {[%emt 0:00:30]} Nxc3 {[%emt 0:00:00]} 11. Rxc3 {[%emt 0:00:00]} dxc4 {[%emt 0:00:30]} 12. Bxc4 {[%emt 0:00:00]} Nd7 {[%emt 0:00:00]} 13. O-O {[%emt 0:00:30]} b6 {[%emt 0:00:00]} 14. Re1 {[%emt 0:03:30]} Bb7 {[%emt 0:00:30]} 15. Qe2 {[%emt 0:04:30]} c5 {[%emt 0:03:30]} 16. Rd1 {[%emt 0:03:30]} Rfd8 {[%emt 0:06:30]} 17. d5 {[%emt 0:05:30]} exd5 {[%emt 0:02:30]} 18. Bxd5 {[%emt 0:00:30]} Bxd5 {[%emt 0:01:30]} 19. Rxd5 {[%emt 0:00:00]} Nf6 {[%emt 0:00:30]} 20. Rxd8+ {[%emt 0:01:00]} Rxd8 {[%emt 0:00:30]} 21. Rd3 {[%emt 0:00:30]} Rxd3 {[%emt 0:07:30]} 22. Qxd3 {[%emt 0:00:00]} Qe4 {[%emt 0:03:30]} 23. Qxe4 {[%emt 0:01:00]} Nxe4 {[%emt 0:00:30]} 24. Kf1 {[%emt 0:00:30]} f6 {[%emt 0:01:30]} 25. Ke2 {[%emt 0:00:30]} Kf7 {[%emt 0:00:30]} 26. Nd2 {[%emt 0:03:30]} Nxd2 {[%emt 0:02:30]} 27. Kxd2 {[%emt 0:00:00]} b5 {[%emt 0:01:30]} 28. Kd3 {[%emt 0:02:00]} Ke6 {[%emt 0:05:30]} 29. e4 {[%emt 0:08:30]} g5 {[%emt 0:10:30]} 30. Ke3 {[%emt 0:03:30]} Ke5 {[%emt 0:00:30]} 31. g3 {[%emt 0:00:00]} g4 {[%emt 0:00:30]} 32. f4+ {[%emt 0:00:00]} gxf3 {[%emt 0:00:30]} 33. Kxf3 {[%emt 0:00:30]} c4 {[%emt 0:01:30]} 34. Ke3 {[%emt 0:09:30]} b4 {[%emt 0:07:30]} 35. h4 {[%emt 0:06:30]} c3 {[%emt 0:09:30]} 36. bxc3 {[%emt 0:01:30]} bxc3 {[%emt 0:00:00]} 37. Kd3 {[%emt 0:00:30]} c2 {[%emt 0:00:00]} 38. Kxc2 {[%emt 0:00:30]} Kxe4 {[%emt 0:00:00]} 39. g4 {[%emt 0:00:30]} Kf3 {[%emt 0:01:00]} 40. g5 {[%emt 0:01:30]} fxg5 {[%emt 0:00:30]} 41. hxg5 {[%emt 0:00:00]} hxg5 {[%emt 0:00:00]} 0-1

[Event "CRO-ch Youth U17 2020"]
[Site "Vinkovci"]
[Date "2020.08.01"]
[Round "5.7"]
[White "Mihaljevic, Eva"]
[Black "Bevanda, Ema"]
[Result "1/2-1/2"]
[ECO "A80"]
[WhiteElo "1223"]
[BlackElo "1554"]
[Annotator "NA"]
[PlyCount "112"]
[EventDate "2020.07.28"]
[EventType "swiss"]
[EventCountry "CRO"]
[TimeControl "5400+30"]

1. d4 {[%emt 0:00:30]} e6 {[%emt 0:00:30]} 2. Bf4 {[%emt 0:00:00]} f5 {[%emt 0:00:00]} 3. e3 {[%emt 0:00:00]} Nf6 {[%emt 0:00:00]} 4. h3 {[%emt 0:00:00]} g6 {[%emt 0:00:30]} 5. g4 {[%emt 0:05:00]} d6 {[%emt 0:02:30]} 6. gxf5 {[%emt 0:06:30]} exf5 {[%emt 0:02:30]} 7. Be2 {[%emt 0:01:30]} Be7 {[%emt 0:08:30]} 8. Nd2 {[%emt 0:07:30]} Nd5 {[%emt 0:10:30]} 9. Bg3 {[%emt 0:11:30]} Rf8 {[%emt 0:04:30]} 10. c4 {[%emt 0:02:30]} f4 {[%emt 0:20:30]} 11. exf4 {[%emt 0:21:30]} Nxf4 {[%emt 0:00:00]} 12. Qb3 {[%emt 0:02:30]} Nc6 {[%emt 0:12:00]} 13. O-O-O {[%emt 0:06:30]} Nxd4 {[%emt 0:04:30]} 14. Qe3 {[%emt 0:01:30]} Nfxe2+ {[%emt 0:09:30]} 15. Nxe2 {[%emt 0:00:30]} Nf5 {[%emt 0:01:30]} 16. Qe4 {[%emt 0:03:30]} Qd7 {[%emt 0:03:07]} 17. Nf4 {[%emt 0:06:30]} c6 {[%emt 0:06:49]} 18. h4 {[%emt 0:04:14]} Nxg3 {[%emt 0:03:19]} 19. fxg3 {[%emt 0:00:20]} Qf5 {[%emt 0:00:07]} 20. Qe3 {[%emt 0:01:27]} Qe5 {[%emt 0:00:46]} 21. Qb3 {[%emt 0:03:17]} Kd8 {[%emt 0:00:46]} 22. Rhe1 {[%emt 0:01:22]} Qf5 {[%emt 0:00:05]} 23. Ne4 {[%emt 0:01:42]} Kc7 {[%emt 0:00:43]} 24. Qb4 {[%emt 0:04:26]} Rd8 {[%emt 0:04:21]} 25. Qc3 {[%emt 0:05:37]} Qe5 {[%emt 0:02:45]} 26. Qf3 {[%emt 0:01:29]} Qg7 {[%emt 0:00:58]} 27. Nc3 {[%emt 0:01:05]} Bf6 {[%emt 0:00:54]} 28. Nfd5+ {[%emt 0:00:49]} cxd5 {[%emt 0:00:38]} 29. Nxd5+ {[%emt 0:00:01]} Kb8 {[%emt 0:00:12]} 30. Qxf6 {[%emt 0:00:12]} Qxf6 {[%emt 0:01:02]} 31. Nxf6 {[%emt 0:00:04]} Kc7 {[%emt 0:00:35]} 32. Re7+ {[%emt 0:00:09]} Kc6 {[%emt 0:00:13]} 33. Rxh7 {[%emt 0:00:55]} Rf8 {[%emt 0:00:38]} 34. Ne4 {[%emt 0:00:15]} Rd8 {[%emt 0:00:18]} 35. b4 {[%emt 0:00:17]} b5 {[%emt 0:00:51]} 36. cxb5+ {[%emt 0:01:28]} Kxb5 {[%emt 0:00:28]} 37. Rxd6 {[%emt 0:00:21]} Bf5 {[%emt 0:00:52]} 38. Rb7+ {[%emt 0:00:24]} Kc4 {[%emt 0:00:30]} 39. Nd2+ {[%emt 0:00:30]} Kc3 {[%emt 0:00:10]} 40. Rc6+ {[%emt 0:01:03]} Kd3 {[%emt 0:00:20]} 41. Nc4 {[%emt 0:00:49]} Be4 {[%emt 0:01:02]} 42. Nb2+ {[%emt 0:00:15]} Ke3 {[%emt 0:00:23]} 43. Rc3+ {[%emt 0:00:10]} Kf2 {[%emt 0:00:34]} 44. Rf7+ {[%emt 0:00:40]} Kg2 {[%emt 0:00:17]} 45. g4 {[%emt 0:00:35]} Rac8 {[%emt 0:00:38]} 46. Na4 {[%emt 0:00:50]} Bd5 {[%emt 0:00:33]} 47. Rxa7 {[%emt 0:00:32]} Bxa2 {[%emt 0:00:25]} 48. Nc5 {[%emt 0:00:36]} Bd5 {[%emt 0:00:30]} 49. b5 {[%emt 0:00:34]} Re8 {[%emt 0:00:39]} 50. Kd2 {[%emt 0:00:30]} Rcd8 {[%emt 0:00:18]} 51. Rd3 {[%emt 0:00:15]} Bc4 {[%emt 0:00:37]} 52. Rxd8 {[%emt 0:00:15]} Rxd8+ {[%emt 0:00:00]} 53. Kc3 {[%emt 0:00:05]} Bxb5 {[%emt 0:00:01]} 54. h5 {[%emt 0:00:27]} gxh5 {[%emt 0:01:01]} 55. gxh5 {[%emt 0:00:01]} Rh8 {[%emt 0:00:49]} 56. Ne6 {[%emt 0:00:52]} Kg3 {[%emt 0:00:42]} 1/2-1/2

[Event "CRO-ch Youth U17 2020"]
[Site "Vinkovci"]
[Date "2020.08.01"]
[Round "5.8"]
[White "Smetisko, Lucija"]
[Black "Bedic, Noemi"]
[Result "0-1"]
[ECO "E90"]
[WhiteElo "1567"]
[BlackElo "1712"]
[Annotator "NA RC"]
[PlyCount "92"]
[EventDate "2020.07.28"]
[EventType "swiss"]
[EventCountry "CRO"]
[TimeControl "5400+30"]

1. d4 {[%emt 0:00:00]} Nf6 {[%emt 0:00:00]} 2. c4 {[%emt 0:01:00]} g6 {[%emt 0:00:00]} 3. Nc3 {[%emt 0:00:30]} Bg7 {[%emt 0:00:00]} 4. e4 {[%emt 0:00:30]} d6 {[%emt 0:00:00]} 5. Bg5 {[%emt 0:02:30]} O-O {[%emt 0:01:30]} 6. Nf3 {[%emt 0:05:30]} h6 {[%emt 0:02:30]} 7. Be3 {[%emt 0:02:30]} e5 {[%emt 0:05:30]} 8. dxe5 {[%emt 0:25:30]} dxe5 {[%emt 0:00:00]} 9. Qd2 {[%emt 0:00:30]} Qxd2+ {[%emt 0:03:00]} 10. Bxd2 {[%emt 0:02:30]} Na6 {[%emt 0:12:30]} 11. O-O-O {[%emt 0:06:30]} Nc5 {[%emt 0:05:30]} 12. Re1 {[%emt 0:02:30]} Ng4 {[%emt 0:02:30]} 13. Be3 {[%emt 0:01:30]} Nxe3 {[%emt 0:00:30]} 14. Rxe3 {[%emt 0:00:30]} c6 {[%emt 0:00:30]} 15. b4 {[%emt 0:06:30]} Ne6 {[%emt 0:00:30]} 16. g3 {[%emt 0:03:30]} h5 {[%emt 0:00:30]} 17. Rd3 {[%emt 0:02:30]} a5 {[%emt 0:04:30]} 18. b5 {[%emt 0:03:30]} Nc5 {[%emt 0:00:30]} 19. Rd6 {[%emt 0:02:30]} Bd7 {[%emt 0:03:30]} 20. Be2 {[%emt 0:06:30]} Rfd8 {[%emt 0:05:30]} 21. Rhd1 {[%emt 0:01:30]} Bf8 {[%emt 0:00:00]} 22. R6d2 {[%emt 0:00:30]} Bh6 {[%emt 0:00:00]} 23. Nxe5 {[%emt 0:01:30]} Bxd2+ {[%emt 0:00:30]} 24. Rxd2 {[%emt 0:00:30]} cxb5 {[%emt 0:07:30]} 25. cxb5 {[%emt 0:07:52]} Rac8 {[%emt 0:05:30]} 26. Kb2 {[%emt 0:01:37]} Be6 {[%emt 0:02:30]} 27. Rd1 {[%emt 0:08:17]} Rxd1 {[%emt 0:00:30]} 28. Bxd1 {[%emt 0:00:06]} Rd8 {[%emt 0:00:30]} 29. Kc2 {[%emt 0:00:07]} Kg7 {[%emt 0:02:30]} 30. Be2 {[%emt 0:00:51]} f5 {[%emt 0:03:30]} 31. f3 {[%emt 0:01:52]} fxe4 {[%emt 0:00:00]} 32. fxe4 {[%emt 0:00:22]} Rf8 {[%emt 0:02:00]} 33. Kd2 {[%emt 0:02:40]} Re8 {[%emt 0:04:30]} 34. Ke3 {[%emt 0:01:03]} Kf6 {[%emt 0:03:30]} 35. Nc4 {[%emt 0:00:30]} Bxc4 {[%emt 0:01:30]} 36. Bxc4 {[%emt 0:00:04]} Ke5 {[%emt 0:03:30]} 37. Bf7 {[%emt 0:01:31]} Rd8 {[%emt 0:00:30]} 38. Bd5 {[%emt 0:00:33]} g5 {[%emt 0:00:30]} 39. Ne2 {[%emt 0:00:23]} a4 {[%emt 0:01:30]} 40. Nd4 {[%emt 0:00:26]} g4 {[%emt 0:00:31]} 41. Nc2 {[%emt 0:00:39]} Rf8 {[%emt 0:00:29]} 42. Ne1 {[%emt 0:00:35]} b6 {[%emt 0:01:47]} 43. Ng2 {[%emt 0:00:28]} Rf3+ {[%emt 0:00:22]} 44. Ke2 {[%emt 0:00:05]} Nxe4 {[%emt 0:00:44]} 45. Bxe4 {[%emt 0:00:37]} Kxe4 {[%emt 0:00:29]} 46. Nf4 {[%emt 0:00:04]} Ra3 {[%emt 0:00:12]} 0-1

[Event "CRO-ch Youth U17 2020"]
[Site "Vinkovci"]
[Date "2020.08.01"]
[Round "6.2"]
[White "Troselj, Ivan"]
[Black "Kovac, Petar"]
[Result "0-1"]
[ECO "C01"]
[WhiteElo "1857"]
[BlackElo "1949"]
[Annotator "ChessBase"]
[PlyCount "124"]
[EventDate "2020.07.28"]
[EventType "swiss"]
[EventCountry "CRO"]
[TimeControl "5400+30"]

1. e4 {[%emt 0:00:30]} e6 {[%emt 0:00:30]} 2. d4 {[%emt 0:00:00]} d5 {[%emt 0:00:00]} 3. exd5 {[%emt 0:00:00]} exd5 {[%emt 0:00:00]} 4. Nf3 {[%emt 0:00:00]} Nc6 {[%emt 0:00:00]} 5. Bb5 {[%emt 0:00:00]} Bd6 {[%emt 0:00:00]} 6. c4 {[%emt 0:00:30]} dxc4 {[%emt 0:00:30]} 7. d5 {[%emt 0:00:00]} a6 {[%emt 0:00:00]} 8. Ba4 {[%emt 0:00:00]} b5 {[%emt 0:00:00]} 9. dxc6 {[%emt 0:00:00]} bxa4 {[%emt 0:00:00]} 10. O-O {[%emt 0:00:00]} Ne7 {[%emt 0:00:00]} 11. Qxa4 {[%emt 0:00:30]} O-O {[%emt 0:00:30]} 12. Nbd2 {[%emt 0:01:30]} Rb8 {[%emt 0:02:30]} 13. a3 {[%emt 0:00:30]} c3 {[%emt 0:00:30]} 14. bxc3 {[%emt 0:01:30]} Bf5 {[%emt 0:01:30]} 15. Nd4 {[%emt 0:10:30]} Bd3 {[%emt 0:02:30]} 16. Re1 {[%emt 0:00:30]} Nd5 {[%emt 0:02:30]} 17. N2f3 {[%emt 0:04:30]} Qf6 {[%emt 0:06:30]} 18. Bg5 {[%emt 0:07:30]} Qg6 {[%emt 0:01:30]} 19. Qa5 {[%emt 0:00:30]} Bc4 {[%emt 0:02:30]} 20. Bh4 {[%emt 0:06:30]} Rb2 {[%emt 0:06:30]} 21. Bg3 {[%emt 0:02:30]} h6 {[%emt 0:02:30]} 22. Rad1 {[%emt 0:15:30]} Ra2 {[%emt 0:02:30]} 23. Ne5 {[%emt 0:01:30]} Bxe5 {[%emt 0:01:30]} 24. Bxe5 {[%emt 0:00:30]} Rb8 {[%emt 0:02:30]} 25. Qc5 {[%emt 0:04:30]} Rxf2 {[%emt 0:08:30]} 26. Kxf2 {[%emt 0:10:30]} Rb2+ {[%emt 0:00:30]} 27. Ne2 {[%emt 0:00:00]} Bxe2 {[%emt 0:00:30]} 28. Rxe2 {[%emt 0:00:00]} Qf5+ {[%emt 0:00:30]} 29. Kg1 {[%emt 0:00:30]} Rxe2 {[%emt 0:00:30]} 30. Bg3 {[%emt 0:01:30]} Rxg2+ {[%emt 0:00:30]} 31. Kh1 {[%emt 0:00:30]} Rxg3 {[%emt 0:01:30]} 32. Qxd5 {[%emt 0:00:30]} Qxd5+ {[%emt 0:01:30]} 33. Rxd5 {[%emt 0:00:30]} Rxc3 {[%emt 0:00:00]} 34. Rd8+ {[%emt 0:00:30]} Kh7 {[%emt 0:00:00]} 35. Rd7 {[%emt 0:00:00]} Rxc6 {[%emt 0:00:00]} 36. Rxf7 {[%emt 0:00:00]} Rc2 {[%emt 0:00:00]} 37. Rf4 {[%emt 0:00:00]} Rc5 {[%emt 0:03:30]} 38. Ra4 {[%emt 0:00:00]} a5 {[%emt 0:00:00]} 39. Kg2 {[%emt 0:00:30]} Kg6 {[%emt 0:00:00]} 40. Kf3 {[%emt 0:00:30]} Kf5 {[%emt 0:01:30]} 41. Rf4+ {[%emt 0:00:30]} Ke6 {[%emt 0:00:00]} 42. Ra4 {[%emt 0:00:00]} Kd5 {[%emt 0:01:00]} 43. h4 {[%emt 0:00:00]} g5 {[%emt 0:00:30]} 44. hxg5 {[%emt 0:00:30]} hxg5 {[%emt 0:00:00]} 45. Ke2 {[%emt 0:00:00]} Kc6 {[%emt 0:00:00]} 46. Kd3 {[%emt 0:01:00]} Rd5+ {[%emt 0:00:30]} 47. Kc3 {[%emt 0:00:00]} Rf5 {[%emt 0:01:30]} 48. Rg4 {[%emt 0:00:00]} Kb6 {[%emt 0:00:00]} 49. Kb3 {[%emt 0:01:30]} Kc5 {[%emt 0:01:00]} 50. Kc3 {[%emt 0:00:30]} Kd5 {[%emt 0:00:30]} 51. Ra4 {[%emt 0:00:30]} Kd6 {[%emt 0:00:30]} 52. Kd2 {[%emt 0:01:30]} Re5 {[%emt 0:00:30]} 53. Rg4 {[%emt 0:00:30]} Ke6 {[%emt 0:00:30]} 54. Rc4 {[%emt 0:00:00]} Kf5 {[%emt 0:02:30]} 55. Rxc7 {[%emt 0:00:00]} Kf4 {[%emt 0:00:00]} 56. Rf7+ {[%emt 0:00:30]} Kg3 {[%emt 0:00:00]} 57. Kd3 {[%emt 0:00:30]} g4 {[%emt 0:00:30]} 58. Kd4 {[%emt 0:00:00]} Rb5 {[%emt 0:01:30]} 59. Kc4 {[%emt 0:00:00]} Rh5 {[%emt 0:00:00]} 60. Kd4 {[%emt 0:01:30]} Kh2 {[%emt 0:00:00]} 61. Rg7 {[%emt 0:00:30]} g3 {[%emt 0:00:30]} 62. Ke3 {[%emt 0:00:00]} g2 {[%emt 0:00:00]} 0-1